Workbook

Sheet GASTOS
A1: 28
A2: =ROUND(IF(C3="REAIS $",CÂMBIO!B4,IF(C3="DÓLARES $",CÂMBIO!C4,IF(C3="PESO ARS $",CÂMBIO!D4,IF(C3="PESO CLP $",CÂMBIO!E4,"ERRO")))),3) -> 3.4 | B2: =CONCATENATE("ARG CHI BOL SET/OUT 2017 - ",A1," DIAS") -> ARG CHI BOL SET/OUT 2017 - 28 DIAS | E2: 2017-09-08 | F2: =E2+1 -> 2017-09-09 | G2: =F2+1 -> 2017-09-10 | H2: 2017-09-11 | I2: 2017-09-12 | J2: 2017-09-13 | K2: 2017-09-14 | L2: 2017-09-15 | M2: 2017-09-16 | N2: 2017-09-17 | O2: 2017-09-18 | P2: =O2+1 -> 2017-09-19 | Q2: =P2+1 -> 2017-09-20 | R2: 2017-09-21 | S2: 2017-09-22 | T2: 2017-09-23 | U2: 2017-09-24 | V2: 2017-09-25 | W2: 2017-09-26 | X2: 2017-09-27 | Y2: 2017-09-28 | Z2: 2017-09-29 | AA2: 2017-09-30 | AB2: 2017-10-01 | AC2: 2017-10-02 | AD2: 2017-10-03 | AE2: 2017-10-04 | AF2: 2017-10-05 | AG2: 2017-10-06
B3: TOTAL EM: | C3: REAIS $ | D3: =(D5+D10+D15+D19+D24) -> 9181.162579 | E3: =E5+E10+E15+E19+E24 -> 0 | F3: 1506.8 | G3: 256 | H3: 371.9 | I3: 101 | J3: 94.18842975 | K3: 1341.861157 | L3: 50.24132231 | M3: 6.181818182 | N3: 5.619834711 | O3: 164.661157 | P3: 476.9955537 | Q3: 320.414595 | R3: 351.56 | S3: 79.43720661 | T3: 306.8230248 | U3: 106 | V3: 200 | W3: 206.0168099 | X3: 107.6535537 | Y3: 435.4840826 | Z3: 659.1627769 | AA3: 12.36363636 | AB3: 118.0165289 | AC3: 288.3090909 | AD3: 694 | AE3: 747 | AF3: 173.472 | AG3: 0
B4: CATEGORIAS | C4: MÉDIA / DIA
B5: TRANSPORTES | C5: =D5/$A$1 -> 157.5688194 | D5: =somacor($F5:$AG5) -> 4411.926942 | E5: =somacor(E6:E9)*$A$2 -> 0 | F5: =somacor(F6:F9)*$A$2 -> 1292 | G5: 154 | H5: 105.9 | I5: 0 | J5: 3.371900826 | K5: 342.7107438 | L5: 0 | M5: 0 | N5: 0 | O5: 39.33884298 | P5: 264.622 | Q5: 0 | R5: 92.004 | S5: 15.45454545 | T5: 219.7155868 | U5: 10 | V5: 22 | W5: 20 | X5: 22.47933884 | Y5: 323.2225455 | Z5: 78.67768595 | AA5: 0 | AB5: 0 | AC5: 110.4297521 | AD5: 606 | AE5: 634 | AF5: 56 | AG5: 0
B6: CARRO | C6: =D6/$A$1 -> 8.386068477 | D6: =somacor(E6:AG6)*$A$2 -> 234.8099174 | K6: 7600 | W6: 100 | Y6: =500 -> 500 | Z6: =1500+1500 -> 3000 | AC6: 1500 | AD6: =350+160 -> 510 | AE6: 150 | AF6: 60
B7: LOTAÇÃO | C7: =D7/$A$1 -> 9.096364817 | D7: =somacor(E7:AG7)*$A$2 -> 254.6982149 | R7: 27.06 | T7: =2500 -> 2500 | Y7: =5000+2500+800 -> 8300 | AC7: 30
B8: ONIBUS | C8: 27.8284575 | D8: 779.1968099 | F8: 280 | G8: =25+730+15 -> 770 | H8: =29.5+500 -> 529.5 | J8: =600 -> 600 | O8: =7000 -> 7000 | S8: =750+2000 -> 2750 | T8: =60.49 -> 60.49 | U8: 50 | V8: =110 -> 110 | X8: =1300+2000+700 -> 4000 | Y8: 11.52 | Z8: 11000 | AF8: 220
B9: AÉRIO | C9: 112.2579286 | D9: 3143.222 | F9: =1236 -> 1236 | K9: 300 | P9: =77.83 -> 77.83 | Y9: 234.6 | AD9: 504 | AE9: 604
B10: ALIMENTAÇÃO | C10: =D10/$A$1 -> 42.18128217 | D10: =somacor($F10:$AG10) -> 1181.075901 | E10: =somacor(E11:E14)*$A$2 -> 0 | F10: =somacor(F11:F14)*$A$2 -> 192.8 | G10: 67 | H10: 48 | I10: 15 | J10: 14.61157025 | K10: =somacor(K11:K14)*$A$2 -> 59.00826446 | L10: 10.90247934 | M10: 6.181818182 | N10: 5.619834711 | O10: 24.16528926 | P10: 64.62809917 | Q10: 40.96859504 | R10: 104.346 | S10: 58.30466116 | T10: 25.2892562 | U10: 36 | V10: 89 | W10: 63.17930579 | X10: 16.80330579 | Y10: 50.44335537 | Z10: 24.10909091 | AA10: 12.36363636 | AB10: 0 | AC10: 47.87933884 | AD10: 30 | AE10: 35 | AF10: 39.472 | AG10: 0
B11: CAFÉ | C11: 0.758677686 | D11: =somacor(E11:AG11)*$A$2 -> 21.24297521 | AA11: 2200 | AC11: 1580
B12: ALMOÇO | C12: 16.21157851 | D12: =somacor(E12:AG12)*$A$2 -> 453.9241983 | F12: 150 | G12: 100 | H12: 200 | K12: 6500 | P12: 7500 | R12: 24.18 | S12: 9.76 | T12: =2750 -> 2750 | V12: 200 | W12: 2990 | X12: 2990 | Y12: 3900 | AD12: 140 | AF12: 9.08
B13: JANTAR | C13: 11.15280283 | D13: 312.2784793 | F13: 700 | G13: 235 | L13: =1940 -> 1940 | V13: 200 | W13: 13.64 | AC13: 140
B14: LANCHE | C14: 14.05822314 | D14: 393.6302479 | F14: 114 | H14: =20+20 -> 40 | I14: 75 | J14: =1050+1050+500 -> 2600 | K14: =2500+1500 -> 4000 | M14: 1100 | N14: 1000 | O14: 4300 | P14: =2800+1200 -> 4000 | Q14: =2290+5000 -> 7290 | R14: 6.51 | S14: =(990*3)+900+600 -> 4470 | T14: =600+1150 -> 1750 | U14: 180 | V14: 45 | Y14: 8.39 | Z14: 4290 | AC14: 55 | AD14: 10 | AE14: =105+70 -> 175 | AF14: 43
B15: HOSPEDAGEM | C15: 45.96865998 | D15: =somacor($F15:$AG15) -> 1287.122479 | E15: =somacor(E16:E18)*$A$2 -> 0 | F15: =somacor(F16:F18)*$A$2 -> 0 | G15: 0 | H15: 60 | I15: 0 | J15: 39.90082645 | K15: 320.3305785 | L15: 0 | M15: 0 | N15: 0 | O15: 44.95867769 | P15: 134.8760331 | Q15: 0 | R15: 0 | S15: 0 | T15: 61.81818182 | U15: 60 | V15: 0 | W15: 105.978 | X15: 0 | Y15: 61.81818182 | Z15: 153.442 | AA15: 0 | AB15: 0 | AC15: 30 | AD15: 58 | AE15: 78 | AF15: 78 | AG15: 0
B16: HOTEL | C16: 45.96865998 | D16: =somacor(E16:AG16)*$A$2 -> 1287.122479 | H16: 300 | J16: 7100 | K16: 57000 | O16: 8000 | P16: 24000 | T16: 11000 | U16: 300 | W16: 31.17 | Y16: 11000 | Z16: 45.13 | AC16: 150 | AD16: 290 | AE16: 390 | AF16: 390
B17: CASA | C17: 0 | D17: =somacor(E17:AG17)*$A$2 -> 0
B18: CAMPING | C18: 0 | D18: 0
B19: PASSEIOS | C19: 56.69575384 | D19: =somacor($F19:$AG19) -> 1587.481107 | E19: =somacor(E20:E23)*$A$2 -> 0 | F19: =somacor(F20:F23)*$A$2 -> 0 | G19: 30 | H19: 150 | I19: 44 | J19: 0 | K19: 578.8429752 | L19: 39.33884298 | M19: 0 | N19: 0 | O19: 0 | P19: 12.86942149 | Q19: 0 | R19: 0 | S19: 0 | T19: 0 | U19: 0 | V19: 89 | W19: 0 | X19: 22.47933884 | Y19: 0 | Z19: 402.934 | AA19: 0 | AB19: 118.0165289 | AC19: 100 | AD19: 0 | AE19: 0 | AF19: 0 | AG19: 0
B20: CITY TOURS | C20: 0 | D20: =somacor(E20:AG20)*$A$2 -> 0
B21: TRILHAS/PASSEIOS | C21: 42.45165702 | D21: =somacor(E21:AG21)*$A$2 -> 1188.646397 | H21: =750 -> 750 | I21: 220 | K21: 103000 | P21: 2290 | Z21: 118.51
B22: EVENTOS | C22: 1.071428571 | D22: 30 | G22: 150
B23: ENTRADAS | C23: 13.17266824 | D23: 368.8347107 | L23: 7000 | V23: =445 -> 445 | X23: 4000 | AB23: 21000 | AC23: 500
B24: COMPRAS | C24: 25.48414817 | D24: =somacor($F24:$AG24) -> 713.5561488 | E24: =somacor(E25:E28)*$A$2 -> 0 | F24: =somacor(F25:F28)*$A$2 -> 22 | G24: 5 | H24: 8 | I24: 42 | J24: 36.30413223 | K24: 40.96859504 | L24: 0 | M24: 0 | N24: 0 | O24: 56.19834711 | P24: 0 | Q24: 279.446 | R24: 155.21 | S24: 5.678 | T24: 0 | U24: 0 | V24: 0 | W24: 16.85950413 | X24: 45.89157025 | Y24: 0 | Z24: 0 | AA24: 0 | AB24: 0 | AC24: 0 | AD24: 0 | AE24: 0 | AF24: 0 | AG24: 0
B25: LEMBRANÇAS | C25: 0.6428571429 | D25: =somacor(E25:AG25)*$A$2 -> 18 | F25: 90
B26: ROUPAS | C26: 15.72413695 | D26: =somacor(E26:AG26)*$A$2 -> 440.2758347 | J26: 1000 | Q26: =57.03+25.16 -> 82.19 | R26: 45.65
B27: CALÇADOS | C27: 0 | D27: 0
B28: COMODIDADE | C28: 9.117154073 | D28: 255.280314 | F28: 20 | G28: 25 | H28: 40 | I28: =40+(100+50+10+5+2+2+1) -> 210 | J28: =1960+3500 -> 5460 | K28: =1700+1590+4000 -> 7290 | O28: =3000+7000 -> 10000 | S28: =1.67 -> 1.67 | W28: 3000 | X28: =5000+2000+1000+100+50+10+5+1 -> 8166
B30: OBS: VALORES CONVERTIDOS PARA MOEDA ESCOLHIDA
B31: $ DÓLAR | C31: $ PESO CLP | D31: $PESO ARG
B32: R$ REAIS

Sheet CÂMBIO
B1: =gfCelColorName(B3) -> 5287936 | C1: =gfCelColorName(C3) -> 15773696 | D1: 49407 | E1: 8421504
B2: TABELA DE CÁLCULO | G2: TABELA DE CÂMBIO
B3: REAIS $ | C3: DÓLARES $ | D3: PESO ARS $ | E3: PESO CLP $ | G3: PAGO | I3: RECEBIDO | K3: DETALHES | GASTO TOTAL EM REAIS: | N3: =SUM(G5:G8)+G17+P3 -> 5240.445
B4: 3.4 | C4: 1 | D4: 17 | E4: 605 | G4: VALOR | H4: MOEDA | I4: VALOR | J4: MOEDA | K4: CÂMBIO | L4: LOCAL | M4: DATA | N4: TIPO
C5: =ROUND(B5/B4,3) -> 0 | D5: =ROUND(C5,3)*D4 -> 0 | E5: =ROUND(C5,3)*E4 -> 0 | G5: =5677.78/4 -> 1419.445 | H5: REAIS | I5: =1600/4 -> 400 | J5: DÓLARES | K5: 3.51 | L5: NATAL - RN | M5: 2016-06-23 | N5: CASH
B6: =ROUND(C6,3)*B4 -> 0 | D6: =ROUND(C6*D4,3) -> 0 | E6: =ROUND(C6*E4,3) -> 0 | G6: 340 | H6: REAIS | I6: 100 | J6: DÓLARES | K6: 3.4 | L6: RECIFE - PE | M6: 2017-09-06 | N6: CARTÃO 0958
B7: =ROUND(C7,3)*B4 -> 0 | C7: =ROUND(D7/D4,3) -> 0 | E7: =ROUND(C7,3)*E4 -> 0 | G7: 987 | H7: REAIS | I7: 300 | J7: DÓLARES | K7: 3.254204 | L7: =L6 -> RECIFE - PE | M7: =M6 -> 2017-09-06 | N7: CASH
B8: =ROUND(C8,3)*B4 -> 0 | C8: =ROUND(E8/E4,3) -> 0 | D8: =ROUND(C8,3)*D4 -> 0 | G8: 2394 | H8: REAIS | I8: 700 | J8: DÓLARES | K8: 3.42 | L8: RECIFE - PE | M8: 2017-09-08 | N8: CARTÃO 5509
G9: 100 | H9: DÓLARES | I9: 1700 | J9: PESOS ARG | K9: 17 | L9: BUENOS AIRES | M9: 2017-09-09 | N9: CASH
G10: 50 | H10: DÓLARES | I10: 850 | J10: PESOS ARG | K10: 17 | L10: BUENOS AIRES | M10: 2017-09-10 | N10: CASH
G11: 300 | H11: DÓLARES | I11: 4300 | J11: PESOS ARG | K11: 17.2 | L11: MENDOZA | M11: 2017-09-11 | N11: CASH
G12: 200 | H12: DÓLARES | I12: 123000 | J12: PESOS CLP | K12: 165 | L12: SANTIAGO | M12: 2017-09-13 | N12: CASH
G13: 72.94 | H13: DÓLARES | I13: 43500 | J13: PESOS CLP | K13: 596.381 | L13: SANTIAGO BANK STAFF | M13: =M12 -> 2017-09-13 | N13: CASH
G14: =259.46+2.5 -> 261.96 | H14: DÓLARES | I14: 150000 | J14: PESOS CLP | K14: 578.12 | L14: ATACAMA | M14: 2017-09-14 | N14: CASH
G15: 999.94 | H15: REAIS | I15: 289 | J15: DÓLARES | K15: =G15/I15 -> 3.46 | L15: RECIFE - PE | M15: 2017-09-20 | N15: CARTÃO 5509
G16: 100 | H16: DÓLARES | I16: 62400 | J16: PESOS CLP | K16: 624 | L16: PUERTO VARAS | M16: 2017-09-26 | N16: CASH
G17: 100 | H17: REAIS | I17: =G17/5.5*1000 -> 18181.81818 | J17: PESOS CLP | K17: =I17/G17 -> 181.8181818 | L17: PUNTA ARENAS | M17: 2017-09-28 | N17: CASH
G18: 349 | H18: REAIS | I18: 100 | J18: DÓLARES | K18: 3.49 | L18: EL CALAFATE | M18: 2017-10-02 | N18: CARTÃO 5509
G19: 36.86 | H19: DÓLARES | I19: 500 | J19: PESOS ARG | K19: =I19/G19 -> 13.56483993 | L19: USHUAIA | M19: 2017-10-03 | N19: CASH
G20: =48.72+2.5 -> 51.22 | H20: DÓLARES | I20: 700 | J20: PESOS ARG | K20: =I20/G20 -> 13.66653651 | L20: BUENOS AIRES | M20: 2017-10-05 | N20: CASH

Sheet ROTEIROS E DICAS
B2: =CONCATENATE("ROTEIRO ",GASTOS!B2) -> ROTEIRO ARG CHI BOL SET/OUT 2017 - 28 DIAS
B3: CIDADE | C3: O QUE FAZER | D3: NOTA | E3: OBSERVAÇÕES
B4: BUENOS AIRES | C4: CIDADE | D4: 8 | E4: MONUMENTOS E PRAÇAS
B5: MENDOZA | C5: FULL DAY BASE ACONCÁGUA | D5: 8 | E5: BOM PASEIO PRA QUEM GOSTA DE UM POUCO DE AVENTURA
B6: ATACAMA | C6: VALE LA LUNA, TUOR ASTRONÔMICO, GEYZER DEL TAYTO, SALAR DE TARA | D6: 10 | E6: DA PRA FAZER O GEYSER DE TAITOR, VALE DA LUNA E TUOR ASTRONÔMICO NO MESMO DIA, OS 3 MELHORES E O SALAR DE TARA MUITO BOM TBM PRA OUTRO DIA
B7: SANTIAGO | C7: CENTRO, DIA DE MONTANHA, VINA DEL MAR E VAL PARAÍSO | D7: 8 | E7: RECOMENTO UM DIA DE MONTANHA PRA QUER QUER CURTIR NEVE
B8: PUERTO MONTT | C8: CIDADE | D8: 7
B9: BARILOCHE | C9: CERRO CATEDRAL | D9: 8 | E9: PASSEIO PRINCIPAL PRA QUEM TEM UM DIA EM BARILOCHE OUTRA BOA OPÇÃO É O TRONADOR
B10: PUERTO VARAS | C10: VULCÃO OSORNO E SALTOS DE PRETOÉH | D10: 7 | E10: BOM, MAS RECOMENDO IR COM AGENCIAS OU COM CARRO, NÃO HÁ TRANSPORTE PÚBLICO PARA O OSORNO
B11: PUNTA ARENA | C11: CIDADE | D11: 7 | E11: CIDADE
B12: PUERTO NATALES | C12: TORRES DEL PAINE | D12: 9 | E12: EXCELENTE RECOMENDO UMA SEMANA NESTE LOCAL, CHOVE MUITO E AS CAMINHADAS SÃO LONGAS
B13: EL CALAFATE | C13: GLACIAL PERITO MORENO | D13: 9 | E13: BOM PARA CONEHCER
B14: USHUAIA | C14: CIDADE | D14: 8
B15: BUENOS AIRES | C15: CIDADE | D15: 8

Sheet FOTOS
B2: BUENOS AIRES - ARGENTINA
B22: MENDOZA - ARGENTINA
B42: DESERTO DO ATACAMA - CHILE
B62: SANTIAGO - CHILE
B82: PUERTO MONTT / PUERTO VARAS - CHILE
B102: BARILOCHE - ARGENTINA
B122: PUNTA ARENAS / PUERTO NATALES - CHILE
B142: PARQUE TORRES DEL PAINE - CHILE
B162: EL CALAFATE / USHUAIA - ARGENTINA

Sheet PLANO
B2: Nr | C2: data | D2: local | E2: passeio | F2: descrção
B3: 1 | C3: 2017-09-09 | D3: buenos aires | E3: cidade
B4: =B3+1 -> 2 | C4: 2017-09-10 | D4: =D3 -> buenos aires | E4: cidade | F4: Saida 22:30 hs. Chegada 12:55 hs. Duração 14:25 hs. - Cama Ejecutivo
B5: =B4+1 -> 3 | C5: 2017-09-11 | D5: mendonza | E5: cidade
B6: 4 | C6: 2017-09-12 | D6: =D5 -> mendonza | E6: alta montanha
B7: 5 | C7: 2017-09-13 | D7: santiago chile | E7: cidade | F7: Saida 06:30 hs. Chegada 13:00 hs. Duração 06:30 hs. - Semicama Promocional
B8: 6 | C8: 2017-09-14 | D8: atacama | E8: cidade e astronômico | F8: ida 06h30 -> 08h40
B9: 7 | C9: 2017-09-15 | D9: atacama | E9: gaizers e vale la luna
B10: 8 | C10: 2017-09-16 | D10: atacama | E10: lagunas
B11: 9 | C11: 2017-09-17 | D11: atacama | E11: salar de tara | F11: saida 4:30 - volta12:00 - Dur: 7h
B12: 10 | C12: 2017-09-18 | D12: santiago chile | E12: cidade | F12: volta 13h45 -> 15h50
B13: 11 | C13: 2017-09-19 | D13: =D12 -> santiago chile | E13: cidade | F13: Saida 07:17 chegada 09:50 - Semi Cama
B14: 12 | C14: 2017-09-20 | D14: santiago chile | E14: compras | F14: 3h de viagem - maule
B15: 13 | C15: 2017-09-21 | D15: santiago chile | E15: el colorado | F15: Saida 23:15 Chegada 07:05 Duração 07h50 - Semi Cama
B16: 14 | C16: 2017-09-22 | D16: santiago chile | E16: val paraíso | F16: a partir das 15h - 4h30 de viagem
B17: 15 | C17: 2017-09-23 | D17: puerto montt | E17: cidade | F17: QK8TC6 - 08h15 -- 10h00 - sky
B18: 16 | C18: 2017-09-24 | D18: bariloche | E18: cidade | F18: 21400
B19: 17 | C19: 2017-09-25 | D19: bariloche | E19: cerro catedral | F19: duração 4h30
B20: 18 | C20: 2017-09-26 | D20: puerto varas | E20: cidade
B21: 19 | C21: 2017-09-27 | D21: =D20 -> puerto varas | E21: salto de petroéh e osorno | F21: duração 6h30 - 13h15 - 19h50
B22: 20 | C22: 2017-09-28 | D22: punta arenas | E22: cidade | F22: ida 11:25 - > 13:35
B23: 21 | C23: 2017-09-29 | D23: puerto natales chile | E23: cidade
B24: 22 | C24: 2017-09-30 | D24: =D23 -> puerto natales chile | E24: torres del paIne | F24: 3h15
B25: 23 | C25: 2017-10-01 | D25: =D24 -> puerto natales chile | E25: =E24 -> torres del paIne
B26: 24 | C26: 2017-10-02 | D26: el calafate | E26: cidade
B27: 25 | C27: 2017-10-03 | D27: ushuia arg | E27: cidade
B28: 26 | C28: 2017-10-04 | D28: buenos aires | E28: cidade
B29: 27 | C29: 2017-10-05 | D29: buenos aires | E29: cidade
B30: 28 | C30: 2017-10-06 | D30: recife, brasil | E30: volta
C31: legenda: | D31: 1º corte se neces. | E31: 2º corte
